[Event "7th Iberoamerican-ch 2019"]
[Site "Linares"]
[Date "2019.08.18"]
[Round "9.35"]
[White "Rodriguez Perez, Angel Mariano"]
[Black "Arroyo Rodriguez, Jesus"]
[Result "1-0"]
[ECO "C00"]
[WhiteElo "2223"]
[BlackElo "2126"]
[Annotator "NA"]
[PlyCount "83"]
[EventDate "2019.08.10"]
[EventType "swiss"]
[EventCountry "ESP"]
[SourceTitle "playchess.com"]
[Source "ChessBase"]
[SourceQuality "1"]
[TimeControl "5400+30"]

1. d4 {[%emt 0:00:00]} e6 {[%emt 0:00:00]} 2. e4 {[%emt 0:00:04]} d5 {[%emt 0:00:08]} 3. Bd3 {[%emt 0:00:30]} dxe4 {[%emt 0:00:30]} 4. Bxe4 {[%emt 0:00:30]} Nf6 {[%emt 0:00:30]} 5. Bf3 {[%emt 0:00:16]} Bd6 6. Ne2 {[%emt 0:00:30]} O-O {[%emt 0:01:48]} 7. O-O {[%emt 0:00:04]} c6 {[%emt 0:00:33]} 8. g3 {[%emt 0:00:29]} b6 {[%emt 0:03:29]} 9. Nbc3 {[%emt 0:00:30]} Bb7 {[%emt 0:03:03]} 10. Bg5 {[%emt 0:10:43]} Nbd7 {[%emt 0:00:41]} 11. Ne4 {[%emt 0:02:12]} Be7 {[%emt 0:03:12]} 12. Nxf6+ Nxf6 13. c3 {[%emt 0:01:13]} Qc7 {[%emt 0:02:03]} 14. Bf4 {[%emt 0:03:07]} Qc8 {[%emt 0:04:00]} 15. Qc2 {[%emt 0:02:21]} c5 {[%emt 0:03:51]} 16. Bxb7 {[%emt 0:08:40]} Qxb7 {[%emt 0:00:01]} 17. Bg5 {[%emt 0:00:48]} Rac8 {[%emt 0:04:09]} 18. Rfd1 {[%emt 0:07:58]} b5 {[%emt 0:09:47]} 19. Rac1 {[%emt 0:12:28]} a6 {[%emt 0:16:22]} 20. Rd3 {[%emt 0:05:14]} Rfe8 {[%emt 0:03:11]} 21. Bxf6 {[%emt 0:03:09]} Bxf6 {[%emt 0:00:20]} 22. Rcd1 {[%emt 0:03:30]} a5 {[%emt 0:07:45]} 23. dxc5 {[%emt 0:01:44]} Rxc5 {[%emt 0:00:34]} 24. Rd7 {[%emt 0:00:21]} Qa8 {[%emt 0:01:32]} 25. Nf4 {[%emt 0:01:53]} Rec8 {[%emt 0:04:37]} 26. Qe2 {[%emt 0:01:24]} g6 {[%emt 0:02:44]} 27. Nd3 {[%emt 0:03:05]} Rf5 {[%emt 0:03:39]} 28. f4 {[%emt 0:03:15]} b4 {[%emt 0:00:49]} 29. Ne5 {[%emt 0:05:33]} Bd8 {[%emt 0:02:11]} 30. Qe3 {[%emt 0:04:05]} h5 {[%emt 0:11:25]} 31. c4 {[%emt 0:00:47]} Qb8 {[%emt 0:07:40]} 32. Qe4 {[%emt 0:01:04]} Bb6+ {[%emt 0:00:24]} 33. Kg2 {[%emt 0:00:16]} Qa8 {[%emt 0:04:51]} 34. Qxa8 {[%emt 0:00:50]} Rxa8 {[%emt 0:00:01]} 35. Rb7 {[%emt 0:00:03]} Bc5 {[%emt 0:01:08]} 36. Rdd7 {[%emt 0:00:22]} h4 {[%emt 0:00:30]} 37. Nxf7 {[%emt 0:00:41]} Kf8 {[%emt 0:00:27]} 38. Ne5 {[%emt 0:01:20]} g5 {[%emt 0:00:30]} 39. Rh7 {[%emt 0:00:36]} Ke8 {[%emt 0:00:10]} 40. Nf7 {[%emt 0:01:47]} gxf4 {[%emt 0:00:22]} 41. Rh8+ {[%emt 0:00:09]} Bf8 {[%emt 0:00:17]} 42. Nd6+ {[%emt 0:00:07]} 1-0

[Event "7th Iberoamerican-ch 2019"]
[Site "Linares"]
[Date "2019.08.18"]
[Round "9.36"]
[White "Silva, Goncalo Nuno Neto Pi"]
[Black "Jimenez Bernal, Francisco"]
[Result "1/2-1/2"]
[ECO "B40"]
[WhiteElo "2085"]
[BlackElo "2222"]
[Annotator "NA"]
[PlyCount "119"]
[EventDate "2019.08.10"]
[EventType "swiss"]
[EventCountry "ESP"]
[SourceTitle "playchess.com"]
[Source "ChessBase"]
[SourceQuality "1"]
[TimeControl "5400+30"]

1. e4 {[%emt 0:06:19]} c5 {[%emt 0:00:00]} 2. Nf3 {[%emt 0:00:03]} e6 {[%emt 0:00:00]} 3. c3 {[%emt 0:00:03]} Nf6 {[%emt 0:00:00]} 4. e5 {[%emt 0:00:39]} Nd5 {[%emt 0:00:00]} 5. Bc4 {[%emt 0:00:18]} d6 {[%emt 0:00:12]} 6. O-O {[%emt 0:00:10]} Nc6 {[%emt 0:01:00]} 7. d4 {[%emt 0:01:36]} cxd4 {[%emt 0:01:12]} 8. cxd4 {[%emt 0:00:48]} Be7 {[%emt 0:00:11]} 9. Nbd2 {[%emt 0:01:07]} dxe5 {[%emt 0:08:18]} 10. dxe5 {[%emt 0:00:08]} Nb6 {[%emt 0:06:28]} 11. Bb3 {[%emt 0:00:53]} Nd4 {[%emt 0:09:37]} 12. Nxd4 {[%emt 0:00:47]} Qxd4 {[%emt 0:00:02]} 13. Qe2 {[%emt 0:00:09]} Bd7 {[%emt 0:06:05]} 14. h3 {[%emt 0:05:07]} Bc6 {[%emt 0:02:42]} 15. Nf3 {[%emt 0:00:15]} Qe4 {[%emt 0:01:29]} 16. Be3 {[%emt 0:00:13]} Nd5 {[%emt 0:05:56]} 17. Bc2 {[%emt 0:02:20]} Nf4 {[%emt 0:00:18]} 18. Qd1 {[%emt 0:01:15]} Nxh3+ {[%emt 0:03:21]} 19. Kh2 {[%emt 0:01:26]} Qg4 {[%emt 0:00:16]} 20. gxh3 {[%emt 0:02:41]} Qxf3 {[%emt 0:00:10]} 21. Qxf3 {[%emt 0:00:05]} Bxf3 {[%emt 0:00:03]} 22. Ba4+ {[%emt 0:00:08]} Kf8 {[%emt 0:02:37]} 23. Rac1 {[%emt 0:00:35]} g5 {[%emt 0:01:38]} 24. Kg3 {[%emt 0:01:33]} Bd5 {[%emt 0:00:37]} 25. Bb3 {[%emt 0:03:04]} Bc6 {[%emt 0:01:57]} 26. Kh2 {[%emt 0:02:57]} Rg8 {[%emt 0:03:09]} 27. Rg1 {[%emt 0:00:26]} a6 {[%emt 0:06:21]} 28. f4 {[%emt 0:01:35]} h6 {[%emt 0:02:06]} 29. Rcf1 {[%emt 0:00:08]} Ke8 {[%emt 0:01:03]} 30. f5 {[%emt 0:00:17]} Rd8 {[%emt 0:05:52]} 31. fxe6 {[%emt 0:01:45]} fxe6 {[%emt 0:00:17]} 32. Bxe6 {[%emt 0:00:14]} Rf8 {[%emt 0:00:30]} 33. Rxf8+ {[%emt 0:01:27]} Bxf8 {[%emt 0:00:12]} 34. Rf1 {[%emt 0:00:22]} Rd3 {[%emt 0:06:24]} 35. Bb6 {[%emt 0:02:14]} Rd2+ {[%emt 0:02:25]} 36. Rf2 {[%emt 0:00:02]} Rxf2+ {[%emt 0:06:57]} 37. Bxf2 {[%emt 0:00:02]} Bb4 {[%emt 0:00:12]} 38. Kg3 {[%emt 0:04:03]} Bd2 {[%emt 0:05:07]} 39. Kg4 {[%emt 0:00:40]} Bf4 {[%emt 0:01:26]} 40. Kf5 {[%emt 0:01:01]} Bc1 {[%emt 0:06:34]} 41. Bd4 {[%emt 0:00:40]} Ke7 {[%emt 0:01:28]} 42. b3 {[%emt 0:02:12]} Be4+ {[%emt 0:00:19]} 43. Kxe4 {[%emt 0:00:18]} Kxe6 {[%emt 0:00:01]} 44. a4 {[%emt 0:02:32]} Bd2 {[%emt 0:02:24]} 45. Bb2 {[%emt 0:00:07]} Be1 {[%emt 0:00:26]} 46. Bd4 {[%emt 0:00:56]} Bg3 {[%emt 0:00:23]} 47. Bc3 {[%emt 0:01:30]} Bh2 {[%emt 0:01:16]} 48. Bd4 {[%emt 0:02:11]} h5 {[%emt 0:01:13]} 49. Bc3 {[%emt 0:01:38]} g4 {[%emt 0:00:54]} 50. hxg4 {[%emt 0:00:05]} hxg4 {[%emt 0:00:01]} 51. Bb2 {[%emt 0:00:33]} Bg3 {[%emt 0:02:19]} 52. Bc3 {[%emt 0:00:17]} Bh2 {[%emt 0:00:25]} 53. Bb2 {[%emt 0:00:06]} g3 {[%emt 0:01:36]} 54. Kf3 {[%emt 0:00:04]} g2 {[%emt 0:00:05]} 55. Kxg2 {[%emt 0:00:03]} Bxe5 {[%emt 0:00:04]} 56. Bc1 {[%emt 0:00:08]} Kd5 {[%emt 0:00:47]} 57. Kf3 {[%emt 0:00:10]} Bc3 {[%emt 0:01:06]} 58. Ke3 {[%emt 0:00:48]} Be1 {[%emt 0:00:27]} 59. Kd3 {[%emt 0:00:06]} Bb4 {[%emt 0:00:16]} 60. Bf4 {[%emt 0:00:13] Ke5 Ke4+} 1/2-1/2

[Event "7th Iberoamerican-ch 2019"]
[Site "Linares"]
[Date "2019.08.18"]
[Round "9.37"]
[White "Sanchez Jerez, Emilio Miguel"]
[Black "Luque Saiz, Andres"]
[Result "0-1"]
[ECO "A06"]
[WhiteElo "2141"]
[BlackElo "2106"]
[Annotator "NA"]
[PlyCount "91"]
[EventDate "2019.08.10"]
[EventType "swiss"]
[EventCountry "ESP"]
[SourceTitle "playchess.com"]
[Source "ChessBase"]
[SourceQuality "1"]
[TimeControl "5400+30"]

1. Nf3 {[%emt 0:00:25]} d5 {[%emt 0:00:04]} 2. g3 {[%emt 0:00:06]} Nf6 {[%emt 0:00:29]} 3. Bg2 {[%emt 0:00:06]} c6 {[%emt 0:01:03]} 4. O-O {[%emt 0:00:11]} Bf5 {[%emt 0:00:36]} 5. d3 {[%emt 0:00:08]} Nbd7 {[%emt 0:00:44]} 6. Nh4 {[%emt 0:10:54]} Bg6 {[%emt 0:01:53]} 7. Nd2 {[%emt 0:04:43]} e6 {[%emt 0:03:52]} 8. Nxg6 {[%emt 0:02:18]} hxg6 {[%emt 0:00:06]} 9. e4 {[%emt 0:00:11]} dxe4 {[%emt 0:02:10]} 10. dxe4 {[%emt 0:03:57]} Bc5 {[%emt 0:05:26]} 11. Qe2 {[%emt 0:21:36]} Qc7 {[%emt 0:06:11]} 12. Nf3 Rh5 {[%emt 0:05:49]} 13. Bf4 {[%emt 0:12:20]} Qb6 {[%emt 0:06:29]} 14. Ng5 {[%emt 0:07:30]} Nh7 {[%emt 0:17:10]} 15. h4 {[%emt 0:07:02]} Nxg5 {[%emt 0:00:55]} 16. Bxg5 {[%emt 0:00:02]} Be7 {[%emt 0:12:57]} 17. Bf3 {[%emt 0:03:50]} Rh8 {[%emt 0:00:49]} 18. Bxe7 {[%emt 0:01:22]} Kxe7 19. e5 {[%emt 0:00:52]} Qxb2 {[%emt 0:08:29]} 20. Rfe1 {[%emt 0:00:16]} Qb6 {[%emt 0:00:31]} 21. Qd2 {[%emt 0:02:38]} Rhd8 {[%emt 0:05:41]} 22. Rab1 {[%emt 0:03:03]} Nxe5 {[%emt 0:07:16]} 23. Qg5+ {[%emt 0:04:53]} f6 {[%emt 0:00:30]} 24. Qf4 {[%emt 0:01:47]} Qc7 {[%emt 0:01:55]} 25. Be2 {[%emt 0:01:23]} c5 {[%emt 0:01:14]} 26. Qe4 {[%emt 0:01:58]} Rab8 {[%emt 0:02:55]} 27. f4 {[%emt 0:00:50]} Qc6 {[%emt 0:00:18]} 28. Qe3 {[%emt 0:00:59]} Nd7 {[%emt 0:01:09]} 29. Bb5 {[%emt 0:04:21]} Qd6 {[%emt 0:00:08]} 30. Rbd1 {[%emt 0:00:38]} Qb6 {[%emt 0:00:13]} 31. Bxd7 Rxd7 {[%emt 0:00:10]} 32. Rxd7+ {[%emt 0:01:19]} Kxd7 {[%emt 0:00:26]} 33. Qd3+ Qd6 {[%emt 0:04:43]} 34. Qxg6 {[%emt 0:00:31]} Qe7 {[%emt 0:00:16]} 35. Qe4 {[%emt 0:00:54]} a6 {[%emt 0:01:33]} 36. f5 {[%emt 0:01:15]} e5 {[%emt 0:00:09]} 37. Rd1+ {[%emt 0:01:22]} Kc7 38. c4 {[%emt 0:00:57]} Rd8 {[%emt 0:00:50]} 39. Rd5 {[%emt 0:01:27]} b5 {[%emt 0:02:16]} 40. cxb5 {[%emt 0:01:24]} axb5 41. a4 bxa4 {[%emt 0:00:35]} 42. Rd3 {[%emt 0:00:57]} Rxd3 {[%emt 0:01:16]} 43. Qxd3 Qd6 44. Qb5 {[%emt 0:00:19]} Qc6 {[%emt 0:01:00]} 45. Qa5+ {[%emt 0:00:00] Kd8 Qxd8 Qd7} Qb6 {[%emt 0:01:20]} 46. Qd2 {[%emt 0:00:27]} 0-1

[Event "7th Iberoamerican-ch 2019"]
[Site "Linares"]
[Date "2019.08.18"]
[Round "9.38"]
[White "Jesus Reyes, Javier"]
[Black "Vega Gutierrez, Belinda"]
[Result "0-1"]
[ECO "D80"]
[WhiteElo "2021"]
[BlackElo "2133"]
[Annotator "NA"]
[PlyCount "36"]
[EventDate "2019.08.10"]
[EventType "swiss"]
[EventCountry "ESP"]
[SourceTitle "playchess.com"]
[Source "ChessBase"]
[SourceQuality "1"]
[TimeControl "5400+30"]

1. d4 {[%emt 0:00:00]} Nf6 {[%emt 0:00:00]} 2. c4 {[%emt 0:00:00]} g6 {[%emt 0:00:00]} 3. Nc3 {[%emt 0:00:00]} d5 {[%emt 0:00:07]} 4. Bg5 {[%emt 0:00:21]} dxc4 {[%emt 0:04:10]} 5. e4 {[%emt 0:06:00]} Nc6 {[%emt 0:06:40]} 6. e5 {[%emt 0:03:56]} Nd5 {[%emt 0:03:23]} 7. Bxc4 {[%emt 0:00:11]} Be6 {[%emt 0:00:46]} 8. Qa4 {[%emt 0:17:16]} Nb6 {[%emt 0:01:15]} 9. Qc2 {[%emt 0:07:25]} Bxc4 {[%emt 0:00:24]} 10. d5 {[%emt 0:01:32]} Nxe5 {[%emt 0:02:11]} 11. O-O-O {[%emt 0:02:06]} Bg7 {[%emt 0:01:56]} 12. Qe4 {[%emt 0:05:39]} Qd7 {[%emt 0:06:05]} 13. f4 {[%emt 0:05:45]} Ng4 {[%emt 0:04:31]} 14. Re1 {[%emt 0:04:18]} O-O-O {[%emt 0:06:57]} 15. Qc2 {[%emt 0:03:07]} Bxc3 {[%emt 0:09:08]} 16. Qxc3 {[%emt 0:03:09]} f6 {[%emt 0:07:15]} 17. Bh4 {[%emt 0:06:53]} Bxd5 {[%emt 0:00:54]} 18. h3 {[%emt 0:00:15]} Bxg2 0-1

[Event "7th Iberoamerican-ch 2019"]
[Site "Linares"]
[Date "2019.08.18"]
[Round "9.39"]
[White "Carrasco Sagredo, Manuel"]
[Black "Gines Abad, Pedro"]
[Result "1-0"]
[ECO "B19"]
[WhiteElo "2106"]
[BlackElo "1964"]
[Annotator "NA"]
[PlyCount "53"]
[EventDate "2019.08.10"]
[EventType "swiss"]
[EventCountry "ESP"]
[SourceTitle "playchess.com"]
[Source "ChessBase"]
[SourceQuality "1"]
[TimeControl "5400+30"]

1. e4 {[%emt 0:00:00]} c6 {[%emt 0:05:03]} 2. d4 {[%emt 0:01:28]} d5 {[%emt 0:00:10]} 3. Nd2 {[%emt 0:00:18]} dxe4 {[%emt 0:00:06]} 4. Nxe4 {[%emt 0:00:04]} Bf5 {[%emt 0:00:05]} 5. Ng3 {[%emt 0:00:57]} Bg6 {[%emt 0:00:07]} 6. h4 {[%emt 0:00:15]} h6 {[%emt 0:00:07]} 7. Nf3 {[%emt 0:01:20]} Nd7 {[%emt 0:00:04]} 8. h5 {[%emt 0:00:16]} Bh7 {[%emt 0:00:05]} 9. Bd3 {[%emt 0:00:04]} Bxd3 {[%emt 0:00:07]} 10. Qxd3 {[%emt 0:00:06]} e6 {[%emt 0:00:04]} 11. Bd2 {[%emt 0:00:40]} Ngf6 {[%emt 0:00:15]} 12. O-O-O {[%emt 0:01:52]} Qc7 {[%emt 0:07:18]} 13. Kb1 {[%emt 0:00:50]} O-O-O {[%emt 0:00:17]} 14. c4 {[%emt 0:13:58]} Kb8 {[%emt 0:05:12]} 15. Bc3 {[%emt 0:01:29]} Bd6 {[%emt 0:05:05]} 16. Ne4 {[%emt 0:00:48]} Be7 {[%emt 0:03:55]} 17. g3 {[%emt 0:15:31]} c5 {[%emt 0:03:00]} 18. d5 {[%emt 0:02:18]} Nxe4 {[%emt 0:06:09]} 19. Qxe4 {[%emt 0:01:23]} Bf6 {[%emt 0:00:35]} 20. dxe6 {[%emt 0:03:24]} Bxc3 {[%emt 0:08:39]} 21. Rxd7 {[%emt 0:00:38]} Rxd7 {[%emt 0:11:26]} 22. exd7 {[%emt 0:00:36]} Bf6 {[%emt 0:02:39]} 23. Qe8+ {[%emt 0:06:30]} Qd8 {[%emt 0:00:23]} 24. Qxf7 {[%emt 0:00:50]} Qb6 {[%emt 0:00:25]} 25. Qe8+ {[%emt 0:00:24]} Kc7 {[%emt 0:07:27]} 26. Ne5 {[%emt 0:03:51]} Bxe5 {[%emt 0:06:30]} 27. d8=Q# 1-0

[Event "7th Iberoamerican-ch 2019"]
[Site "Linares"]
[Date "2019.08.18"]
[Round "9.40"]
[White "Paiva, Henrique M A Alberga"]
[Black "Ingunza Curro, Andres"]
[Result "0-1"]
[ECO "A01"]
[WhiteElo "2106"]
[BlackElo "2103"]
[Annotator "NA"]
[PlyCount "118"]
[EventDate "2019.08.10"]
[EventType "swiss"]
[EventCountry "ESP"]
[SourceTitle "playchess.com"]
[Source "ChessBase"]
[SourceQuality "1"]
[TimeControl "5400+30"]

1. b3 {[%emt 0:05:48]} e5 {[%emt 0:00:44]} 2. Bb2 {[%emt 0:00:30]} Nc6 {[%emt 0:00:03]} 3. e3 {[%emt 0:01:35]} Nf6 {[%emt 0:00:04]} 4. Bb5 {[%emt 0:00:08]} Bd6 {[%emt 0:00:04]} 5. Na3 Na5 {[%emt 0:00:04]} 6. Be2 {[%emt 0:00:11]} a6 {[%emt 0:00:05]} 7. c4 {[%emt 0:00:46]} O-O {[%emt 0:00:30]} 8. Nc2 {[%emt 0:09:15]} Re8 {[%emt 0:00:23]} 9. d3 {[%emt 0:00:30]} c5 {[%emt 0:00:30]} 10. Nf3 {[%emt 0:00:30]} Nc6 {[%emt 0:01:05]} 11. O-O {[%emt 0:09:53]} Bf8 {[%emt 0:25:59]} 12. d4 {[%emt 0:00:30]} e4 {[%emt 0:00:30]} 13. Ne5 {[%emt 0:03:34]} cxd4 {[%emt 0:03:43]} 14. exd4 {[%emt 0:00:40]} d6 {[%emt 0:00:54]} 15. Nxc6 bxc6 {[%emt 0:00:01]} 16. d5 {[%emt 0:03:55]} c5 {[%emt 0:04:16]} 17. f4 {[%emt 0:23:54]} exf3 {[%emt 0:13:16]} 18. Bxf3 {[%emt 0:03:01]} g6 {[%emt 0:07:40]} 19. Qd2 {[%emt 0:05:31]} Bg7 {[%emt 0:01:48]} 20. Qf4 {[%emt 0:05:41]} Ra7 {[%emt 0:06:40]} 21. Qh4 {[%emt 0:05:18]} Bf5 {[%emt 0:03:42]} 22. Rac1 {[%emt 0:00:40]} h6 23. Ba1 {[%emt 0:02:08]} g5 {[%emt 0:10:24]} 24. Qf2 {[%emt 0:00:57]} Bg6 {[%emt 0:01:55]} 25. Ne3 {[%emt 0:01:41]} Rae7 {[%emt 0:01:50]} 26. Ng4 {[%emt 0:02:50]} Nxg4 {[%emt 0:02:30]} 27. Bxg4 {[%emt 0:00:05]} Re4 {[%emt 0:00:25]} 28. Bxg7 {[%emt 0:00:37]} Kxg7 {[%emt 0:03:09]} 29. Qb2+ {[%emt 0:02:01]} R8e5 {[%emt 0:00:21]} 30. Bf3 {[%emt 0:00:44]} Re3 {[%emt 0:00:54]} 31. Rce1 {[%emt 0:00:30]} Kh7 {[%emt 0:00:30]} 32. Rxe3 {[%emt 0:02:35]} Rxe3 {[%emt 0:00:43]} 33. Bg4 {[%emt 0:01:50]} Re5 {[%emt 0:01:41]} 34. Qa3 {[%emt 0:01:16]} Qe7 {[%emt 0:01:19]} 35. Qa5 {[%emt 0:00:30]} Bd3 {[%emt 0:00:30]} 36. Rd1 {[%emt 0:01:14]} Be2 {[%emt 0:01:03]} 37. Bxe2 {[%emt 0:00:09]} Rxe2 {[%emt 0:04:39]} 38. Qc3 {[%emt 0:01:34]} Qe4 39. Qg3 {[%emt 0:00:14]} Rxa2 {[%emt 0:01:23]} 40. Rf1 {[%emt 0:01:44]} f5 {[%emt 0:00:30]} 41. Re1 {[%emt 0:00:30]} Re2 {[%emt 0:00:23]} 42. Rxe2 {[%emt 0:00:08]} Qxe2 {[%emt 0:00:30]} 43. Qc3 {[%emt 0:00:30]} Kg6 {[%emt 0:00:30]} 44. h3 {[%emt 0:00:30]} f4 {[%emt 0:00:30]} 45. Qh8 {[%emt 0:00:30]} Qe1+ {[%emt 0:00:30]} 46. Kh2 {[%emt 0:00:30]} Qe5 {[%emt 0:00:30]} 47. Qg8+ {[%emt 0:00:00]} Kh5 {[%emt 0:02:22]} 48. Kg1 {[%emt 0:00:06]} Kh4 {[%emt 0:01:14]} 49. Qe6 {[%emt 0:02:10]} Qe3+ {[%emt 0:01:02]} 50. Kf1 {[%emt 0:02:11]} Qc1+ {[%emt 0:00:26]} 51. Kf2 {[%emt 0:00:30]} h5 {[%emt 0:00:30]} 52. Qe2 {[%emt 0:01:17]} Qc3 {[%emt 0:00:48]} 53. Qa2 {[%emt 0:00:48]} Qe3+ {[%emt 0:00:07]} 54. Kf1 {[%emt 0:00:30]} Kg3 {[%emt 0:00:30]} 55. Qc2 {[%emt 0:00:30]} g4 {[%emt 0:00:22]} 56. hxg4 {[%emt 0:00:20]} hxg4 {[%emt 0:00:12]} 57. Qb2 {[%emt 0:00:26]} f3 {[%emt 0:00:30]} 58. gxf3 {[%emt 0:00:30]} Qxf3+ {[%emt 0:00:30]} 59. Kg1 Qd1# 0-1